[Event "*** Titled Tuesday Blitz"]
[Site "Chess.com"]
[Date "2020.04.21"]
[Round "5"]
[White "beccrajoy"]
[Black "queen_iryna"]
[Result "0-1"]
[WhiteElo "1805"]
[BlackElo "2285"]
[TimeControl "180+1"]
[EndTime "10:54:59 PDT"]
[Termination "queen_iryna won by resignation"]

1. e4 {[%clk 0:02:59.9]} 1... d6 {[%clk 0:02:59.4]} 2. d4 {[%clk 0:02:58.4]}
2... Nf6 {[%clk 0:03:00.1]} 3. Nc3 {[%clk 0:02:57.6]} 3... g6 {[%clk 0:03:00.3]}
4. Be3 {[%clk 0:02:51.8]} 4... a6 {[%clk 0:02:58.4]} 5. Qd2 {[%clk 0:02:50.8]}
5... b5 {[%clk 0:02:53.7]} 6. Bd3 {[%clk 0:02:35.3]} 6... Bb7 {[%clk 0:02:48.7]}
7. f3 {[%clk 0:02:24.8]} 7... Nbd7 {[%clk 0:02:47.9]} 8. Nge2 {[%clk 0:02:11.9]}
8... c5 {[%clk 0:02:45.2]} 9. dxc5 {[%clk 0:02:01.8]} 9... dxc5 {[%clk
0:02:46.1]} 10. b3 {[%clk 0:02:01.6]} 10... Qc7 {[%clk 0:02:21]} 11. Nf4 {[%clk
0:01:30.6]} 11... e6 {[%clk 0:02:14.3]} 12. h4 {[%clk 0:00:59.7]} 12... Bg7
{[%clk 0:01:41.5]} 13. h5 {[%clk 0:00:58.2]} 13... Nxh5 {[%clk 0:01:37.6]} 14.
Nxh5 {[%clk 0:00:57.1]} 14... gxh5 {[%clk 0:01:37.8]} 15. Rxh5 {[%clk 0:00:57]}
15... b4 {[%clk 0:01:37]} 16. Qf2 {[%clk 0:00:25.6]} 16... Bxc3+ {[%clk
0:01:34.6]} 17. Kf1 {[%clk 0:00:24.8]} 17... Bxa1 {[%clk 0:01:32]} 18. Bxc5
{[%clk 0:00:25.4]} 18... Nxc5 {[%clk 0:01:20.9]} 19. Rxc5 {[%clk 0:00:26.3]}
19... Qd6 {[%clk 0:01:18.5]} 0-1

[Event "*** Titled Tuesday Blitz"]
[Site "Chess.com"]
[Date "2020.04.21"]
[Round "5"]
[White "Lysiak_Poltorak"]
[Black "Ellaijio_B"]
[Result "0-1"]
[WhiteElo "2344"]
[BlackElo "2676"]
[TimeControl "180+1"]
[EndTime "10:55:03 PDT"]
[Termination "Ellaijio_B won by resignation"]

1. e4 {[%clk 0:03:00.9]} 1... c5 {[%clk 0:03:00.1]} 2. Nf3 {[%clk 0:03:00.5]}
2... e6 {[%clk 0:03:00.4]} 3. d4 {[%clk 0:03:00.4]} 3... cxd4 {[%clk 0:03:01.3]}
4. Nxd4 {[%clk 0:03:01.3]} 4... a6 {[%clk 0:03:01.9]} 5. Nc3 {[%clk 0:03:01.6]}
5... b5 {[%clk 0:03:01.8]} 6. a4 {[%clk 0:02:59.2]} 6... b4 {[%clk 0:03:01.6]}
7. Nce2 {[%clk 0:02:59.3]} 7... Bb7 {[%clk 0:03:01.9]} 8. f3 {[%clk 0:02:55]}
8... Nc6 {[%clk 0:03:00.4]} 9. Be3 {[%clk 0:02:54.6]} 9... Nf6 {[%clk
0:02:59.5]} 10. Nxc6 {[%clk 0:02:53.4]} 10... Bxc6 {[%clk 0:02:59]} 11. Nd4
{[%clk 0:02:52.6]} 11... Bb7 {[%clk 0:02:59.4]} 12. Be2 {[%clk 0:02:51.7]} 12...
Qc7 {[%clk 0:02:59.5]} 13. O-O {[%clk 0:02:50.9]} 13... Bd6 {[%clk 0:02:57.6]}
14. g3 {[%clk 0:02:37.6]} 14... h5 {[%clk 0:02:55.2]} 15. Bg5 {[%clk 0:02:11]}
15... Bxg3 {[%clk 0:02:49.1]} 16. f4 {[%clk 0:01:56.5]} 16... Nxe4 {[%clk
0:02:38.2]} 17. hxg3 {[%clk 0:01:49.3]} 17... Nxg5 {[%clk 0:02:37.2]} 18. Nf3
{[%clk 0:01:23.6]} 18... Ne4 {[%clk 0:02:33.7]} 19. Kg2 {[%clk 0:01:04.7]} 19...
h4 {[%clk 0:02:30]} 20. Qd4 {[%clk 0:00:47.7]} 20... Nxg3 {[%clk 0:02:24.4]} 21.
Qxg7 {[%clk 0:00:46.3]} 21... O-O-O {[%clk 0:02:23.8]} 22. Kf2 {[%clk
0:00:20.7]} 22... Qxf4 {[%clk 0:02:19.3]} 23. Rad1 {[%clk 0:00:12.7]} 23... Ne4+
{[%clk 0:02:11.4]} 24. Ke1 {[%clk 0:00:11.2]} 24... Rhg8 {[%clk 0:02:11.9]} 25.
Qd4 {[%clk 0:00:10.9]} 25... Qg3+ {[%clk 0:02:10.6]} 26. Rf2 {[%clk 0:00:09.1]}
26... Qxf2+ {[%clk 0:02:09.6]} 27. Qxf2 {[%clk 0:00:09.4]} 27... Nxf2 {[%clk
0:02:10.5]} 28. Kxf2 {[%clk 0:00:10.3]} 28... Bxf3 {[%clk 0:02:10.9]} 29. Bxf3
{[%clk 0:00:10.1]} 29... d5 {[%clk 0:02:11.8]} 30. Rd4 {[%clk 0:00:09.9]} 30...
a5 {[%clk 0:02:08.3]} 31. Rxh4 {[%clk 0:00:09.8]} 31... Kd7 {[%clk 0:02:08.5]}
32. Rh7 {[%clk 0:00:09.8]} 32... Ke7 {[%clk 0:02:08.5]} 33. Bh5 {[%clk
0:00:09.5]} 33... Rdf8 {[%clk 0:02:06]} 34. Ke3 {[%clk 0:00:09.5]} 34... Rh8
{[%clk 0:02:05.4]} 0-1

[Event "*** Titled Tuesday Blitz"]
[Site "Chess.com"]
[Date "2020.04.21"]
[Round "5"]
[White "avocadosheena"]
[Black "Gyapiking"]
[Result "0-1"]
[WhiteElo "2123"]
[BlackElo "2326"]
[TimeControl "180+1"]
[EndTime "10:55:03 PDT"]
[Termination "Gyapiking won on time"]

1. d4 {[%clk 0:03:00.9]} 1... d6 {[%clk 0:02:56.8]} 2. c4 {[%clk 0:02:59.5]}
2... e5 {[%clk 0:02:55]} 3. d5 {[%clk 0:02:55]} 3... f5 {[%clk 0:02:53.9]} 4. g3
{[%clk 0:02:47.5]} 4... Nf6 {[%clk 0:02:53.6]} 5. Bg2 {[%clk 0:02:47.9]} 5... g6
{[%clk 0:02:52.8]} 6. Nc3 {[%clk 0:02:46.4]} 6... Bg7 {[%clk 0:02:52.7]} 7. e4
{[%clk 0:02:35]} 7... O-O {[%clk 0:02:51.4]} 8. Nge2 {[%clk 0:02:32.9]} 8... a5
{[%clk 0:02:46.8]} 9. O-O {[%clk 0:02:30.9]} 9... Na6 {[%clk 0:02:46.7]} 10.
exf5 {[%clk 0:01:33.5]} 10... gxf5 {[%clk 0:02:45.7]} 11. f4 {[%clk 0:01:34]}
11... Nc5 {[%clk 0:02:40.7]} 12. Be3 {[%clk 0:01:28.7]} 12... Ng4 {[%clk
0:02:37.3]} 13. Bxc5 {[%clk 0:01:10.2]} 13... dxc5 {[%clk 0:02:35.3]} 14. Qd2
{[%clk 0:01:06.5]} 14... e4 {[%clk 0:02:32.8]} 15. h3 {[%clk 0:00:57.3]} 15...
Nf6 {[%clk 0:02:32.4]} 16. Qe3 {[%clk 0:00:38.2]} 16... Qe7 {[%clk 0:02:24.1]}
17. Rad1 {[%clk 0:00:33.4]} 17... Kh8 {[%clk 0:02:21.6]} 18. Kh1 {[%clk
0:00:29.1]} 18... Bd7 {[%clk 0:02:20]} 19. Rg1 {[%clk 0:00:21.9]} 19... Rg8
{[%clk 0:02:19.8]} 20. Bf1 {[%clk 0:00:16.3]} 20... Ra6 {[%clk 0:02:16.2]} 21.
Nc1 {[%clk 0:00:15.1]} 21... Nh5 {[%clk 0:02:05.2]} 22. N1e2 {[%clk 0:00:08.5]}
22... Rh6 {[%clk 0:02:04.4]} 23. Kh2 {[%clk 0:00:07.1]} 23... b6 {[%clk
0:02:03.9]} 24. Qf2 {[%clk 0:00:06.2]} 24... Nf6 {[%clk 0:02:01.7]} 25. Kg2
{[%clk 0:00:05.3]} 25... Be8 {[%clk 0:02:01.3]} 26. Qe3 {[%clk 0:00:05]} 26...
Bh5 {[%clk 0:02:00]} 27. Rd2 {[%clk 0:00:03.7]} 27... Bf3+ {[%clk 0:01:59.7]}
28. Kf2 {[%clk 0:00:03]} 28... Ne8 {[%clk 0:01:56]} 29. Bg2 {[%clk 0:00:02.7]}
29... Bxg2 {[%clk 0:01:53.8]} 30. Kxg2 {[%clk 0:00:03.6]} 30... Nd6 {[%clk
0:01:53.4]} 31. Rh1 {[%clk 0:00:02.6]} 31... Nxc4 {[%clk 0:01:52.4]} 0-1

[Event "*** Titled Tuesday Blitz"]
[Site "Chess.com"]
[Date "2020.04.21"]
[Round "5"]
[White "mitraasz"]
[Black "tamarozi99"]
[Result "1-0"]
[WhiteElo "2209"]
[BlackElo "1990"]
[TimeControl "180+1"]
[EndTime "10:55:05 PDT"]
[Termination "mitraasz won by checkmate"]

1. d4 {[%clk 0:03:00.9]} 1... Nf6 {[%clk 0:02:59.3]} 2. Nf3 {[%clk 0:02:59.3]}
2... g6 {[%clk 0:02:59.2]} 3. Bf4 {[%clk 0:02:57.9]} 3... Bg7 {[%clk 0:02:58.9]}
4. e3 {[%clk 0:02:57.7]} 4... d6 {[%clk 0:02:59]} 5. Be2 {[%clk 0:02:58]} 5...
Nbd7 {[%clk 0:02:59]} 6. O-O {[%clk 0:02:57.2]} 6... b6 {[%clk 0:02:59.3]} 7. c4
{[%clk 0:02:57]} 7... Bb7 {[%clk 0:02:59.4]} 8. Nc3 {[%clk 0:02:54.4]} 8... O-O
{[%clk 0:02:58.7]} 9. h3 {[%clk 0:02:52.9]} 9... Re8 {[%clk 0:02:47.6]} 10. Rc1
{[%clk 0:02:49.9]} 10... a5 {[%clk 0:02:43.5]} 11. a3 {[%clk 0:02:49.5]} 11...
e5 {[%clk 0:02:35.7]} 12. Bh2 {[%clk 0:02:47.7]} 12... h6 {[%clk 0:02:23.7]} 13.
b4 {[%clk 0:02:47.6]} 13... Nh7 {[%clk 0:02:09]} 14. Qb3 {[%clk 0:02:44.6]}
14... Kh8 {[%clk 0:02:04.6]} 15. c5 {[%clk 0:02:44.2]} 15... e4 {[%clk
0:01:49.6]} 16. Nd2 {[%clk 0:02:42.1]} 16... f5 {[%clk 0:01:40.2]} 17. Nb5
{[%clk 0:02:38.2]} 17... a4 {[%clk 0:01:06.5]} 18. Qb1 {[%clk 0:02:20.9]} 18...
bxc5 {[%clk 0:00:21.7]} 19. dxc5 {[%clk 0:02:18.5]} 19... Ne5 {[%clk 0:00:15.6]}
20. cxd6 {[%clk 0:02:15.8]} 20... cxd6 {[%clk 0:00:15.5]} 21. Nc7 {[%clk
0:02:15.6]} 21... g5 {[%clk 0:00:09.8]} 22. Nxe8 {[%clk 0:02:13]} 22... Qxe8
{[%clk 0:00:09.5]} 23. Rc7 {[%clk 0:02:12.8]} 23... Rb8 {[%clk 0:00:09]} 24. Nc4
{[%clk 0:02:08.2]} 24... d5 {[%clk 0:00:05.6]} 25. Nxe5 {[%clk 0:02:07.5]} 25...
Bxe5 {[%clk 0:00:06.5]} 26. Bxe5+ {[%clk 0:02:07]} 26... Qxe5 {[%clk 0:00:07.4]}
27. Rfc1 {[%clk 0:02:07]} 27... Nf6 {[%clk 0:00:06.5]} 28. Rf7 {[%clk
0:02:05.6]} 28... f4 {[%clk 0:00:06]} 29. Rcc7 {[%clk 0:02:04.6]} 29... f3
{[%clk 0:00:04.7]} 30. gxf3 {[%clk 0:01:59.6]} 30... exf3 {[%clk 0:00:04.5]} 31.
Rh7+ {[%clk 0:01:58.9]} 31... Nxh7 {[%clk 0:00:03.7]} 32. Qxh7# {[%clk 0:01:59]}
1-0

[Event "*** Titled Tuesday Blitz"]
[Site "Chess.com"]
[Date "2020.04.21"]
[Round "5"]
[White "kenta1234"]
[Black "MikaelyanArman"]
[Result "0-1"]
[WhiteElo "2598"]
[BlackElo "2751"]
[TimeControl "180+1"]
[EndTime "10:55:09 PDT"]
[Termination "MikaelyanArman won by resignation"]

1. Nf3 {[%clk 0:03:00.9]} 1... d5 {[%clk 0:02:58.1]} 2. d4 {[%clk 0:03:00.6]}
2... Nf6 {[%clk 0:02:58]} 3. Bf4 {[%clk 0:03:00.8]} 3... c5 {[%clk 0:02:56.4]}
4. e3 {[%clk 0:03:01.1]} 4... e6 {[%clk 0:02:56.1]} 5. c3 {[%clk 0:03:01.2]}
5... Bd6 {[%clk 0:02:55.9]} 6. Bg3 {[%clk 0:03:01.1]} 6... Qc7 {[%clk
0:02:55.5]} 7. Nbd2 {[%clk 0:03:01.2]} 7... Nbd7 {[%clk 0:02:53.8]} 8. Bd3
{[%clk 0:03:01.4]} 8... e5 {[%clk 0:02:44.3]} 9. dxe5 {[%clk 0:02:59.4]} 9...
Nxe5 {[%clk 0:02:44.3]} 10. Nxe5 {[%clk 0:03:00.2]} 10... Bxe5 {[%clk
0:02:45.1]} 11. Bxe5 {[%clk 0:02:59.6]} 11... Qxe5 {[%clk 0:02:46]} 12. Nf3
{[%clk 0:03:00.1]} 12... Qc7 {[%clk 0:02:27.3]} 13. O-O {[%clk 0:02:57.6]} 13...
O-O {[%clk 0:02:26.1]} 14. h3 {[%clk 0:02:56.4]} 14... b6 {[%clk 0:02:25.5]} 15.
a4 {[%clk 0:02:54.4]} 15... Bb7 {[%clk 0:02:14.4]} 16. a5 {[%clk 0:02:54.1]}
16... h6 {[%clk 0:02:04.2]} 17. axb6 {[%clk 0:02:53.9]} 17... axb6 {[%clk
0:02:05.1]} 18. Qe2 {[%clk 0:02:54.5]} 18... Rfe8 {[%clk 0:02:03.1]} 19. Bb5
{[%clk 0:02:51.9]} 19... Bc6 {[%clk 0:02:01.4]} 20. Bxc6 {[%clk 0:02:51.2]}
20... Qxc6 {[%clk 0:02:01.5]} 21. Qd3 {[%clk 0:02:49.8]} 21... g6 {[%clk
0:01:50.6]} 22. b4 {[%clk 0:02:49.4]} 22... Kg7 {[%clk 0:01:48.1]} 23. bxc5
{[%clk 0:02:47.6]} 23... bxc5 {[%clk 0:01:49]} 24. c4 {[%clk 0:02:48.1]} 24...
Rad8 {[%clk 0:01:35.1]} 25. cxd5 {[%clk 0:02:47.6]} 25... Rxd5 {[%clk
0:01:32.3]} 26. Qc3 {[%clk 0:02:47.4]} 26... Kg8 {[%clk 0:01:23.8]} 27. Rfd1
{[%clk 0:02:46.2]} 27... Ne4 {[%clk 0:01:22.5]} 28. Qc4 {[%clk 0:02:41.9]} 28...
Rxd1+ {[%clk 0:01:05]} 29. Rxd1 {[%clk 0:02:41.5]} 29... Qf6 {[%clk 0:01:02.7]}
30. Rd7 {[%clk 0:02:37.9]} 30... Kg7 {[%clk 0:00:55.5]} 31. Qd5 {[%clk
0:02:22.2]} 31... Re6 {[%clk 0:00:50.6]} 32. Rc7 {[%clk 0:02:15.9]} 32... g5
{[%clk 0:00:37.8]} 33. Ra7 {[%clk 0:02:01.2]} 33... h5 {[%clk 0:00:36]} 34. Ra2
{[%clk 0:01:51.4]} 34... Nc3 {[%clk 0:00:31.3]} 35. Qxc5 {[%clk 0:01:38.2]}
35... Nxa2 {[%clk 0:00:29.7]} 0-1

[Event "*** Titled Tuesday Blitz"]
[Site "Chess.com"]
[Date "2020.04.21"]
[Round "5"]
[White "MateSchmate"]
[Black "RU_B9"]
[Result "1-0"]
[WhiteElo "2464"]
[BlackElo "1854"]
[TimeControl "180+1"]
[EndTime "10:55:12 PDT"]
[Termination "MateSchmate won on time"]

1. e4 {[%clk 0:03:00.9]} 1... c5 {[%clk 0:03:00.1]} 2. Nf3 {[%clk 0:03:00.9]}
2... Nc6 {[%clk 0:02:59.3]} 3. d4 {[%clk 0:03:01.5]} 3... cxd4 {[%clk
0:02:58.3]} 4. Nxd4 {[%clk 0:03:02.4]} 4... Nf6 {[%clk 0:02:57.5]} 5. Nc3 {[%clk
0:03:02.1]} 5... e5 {[%clk 0:02:57.1]} 6. Ndb5 {[%clk 0:03:01.7]} 6... d6 {[%clk
0:02:56.9]} 7. Bg5 {[%clk 0:03:01.2]} 7... a6 {[%clk 0:02:56.4]} 8. Na3 {[%clk
0:03:01.6]} 8... b5 {[%clk 0:02:53.6]} 9. Nd5 {[%clk 0:03:01.8]} 9... Be7 {[%clk
0:02:53.2]} 10. Bxf6 {[%clk 0:03:02.4]} 10... gxf6 {[%clk 0:02:47.4]} 11. c4
{[%clk 0:03:02.8]} 11... f5 {[%clk 0:02:40.7]} 12. cxb5 {[%clk 0:03:00]} 12...
Nd4 {[%clk 0:02:40.2]} 13. b6 {[%clk 0:02:50.3]} 13... fxe4 {[%clk 0:02:27.4]}
14. Nc7+ {[%clk 0:02:44.9]} 14... Kf8 {[%clk 0:02:26.9]} 15. Nxa8 {[%clk
0:02:45.4]} 15... Bb7 {[%clk 0:02:16.8]} 16. Nc7 {[%clk 0:02:44.6]} 16... d5
{[%clk 0:02:14.9]} 17. Nc2 {[%clk 0:02:43.9]} 17... Nxc2+ {[%clk 0:01:52.5]} 18.
Qxc2 {[%clk 0:02:44.8]} 18... Bb4+ {[%clk 0:01:52.8]} 19. Kd1 {[%clk 0:02:45]}
19... Qd6 {[%clk 0:01:43.6]} 20. Nxa6 {[%clk 0:02:37.2]} 20... Bxa6 {[%clk
0:01:20.8]} 21. Bxa6 {[%clk 0:02:36.8]} 21... Qxb6 {[%clk 0:01:19.9]} 22. Be2
{[%clk 0:02:26.6]} 22... Kg7 {[%clk 0:01:05.4]} 23. a3 {[%clk 0:02:26]} 23...
Bc5 {[%clk 0:01:01.7]} 24. f3 {[%clk 0:02:10.4]} 24... e3 {[%clk 0:00:41.3]} 25.
b4 {[%clk 0:02:09.7]} 25... Bd4 {[%clk 0:00:40.6]} 26. Rc1 {[%clk 0:02:10]}
26... Re8 {[%clk 0:00:31.1]} 27. Bd3 {[%clk 0:02:08.4]} 27... Qh6 {[%clk
0:00:12]} 28. Qc6 {[%clk 0:01:56.7]} 28... Qg5 {[%clk 0:00:08.4]} 29. Rc2 {[%clk
0:01:45.1]} 29... Re6 {[%clk 0:00:06.1]} 30. Qxd5 {[%clk 0:01:44.9]} 1-0

[Event "*** Titled Tuesday Blitz"]
[Site "Chess.com"]
[Date "2020.04.21"]
[Round "5"]
[White "PawnEatingZombie"]
[Black "Kosche007"]
[Result "1-0"]
[WhiteElo "2142"]
[BlackElo "2311"]
[TimeControl "180+1"]
[EndTime "10:55:18 PDT"]
[Termination "PawnEatingZombie won by resignation"]

1. d4 {[%clk 0:03:00.9]} 1... Nf6 {[%clk 0:02:59.3]} 2. c4 {[%clk 0:03:00.9]}
2... g6 {[%clk 0:02:59.5]} 3. Nc3 {[%clk 0:03:00.8]} 3... Bg7 {[%clk 0:03:00]}
4. e4 {[%clk 0:03:00.4]} 4... d6 {[%clk 0:03:00.2]} 5. Be2 {[%clk 0:03:00.6]}
5... O-O {[%clk 0:03:00.1]} 6. Be3 {[%clk 0:03:01.1]} 6... c5 {[%clk 0:02:59]}
7. d5 {[%clk 0:03:00.4]} 7... e6 {[%clk 0:02:59]} 8. Nf3 {[%clk 0:03:00.4]} 8...
exd5 {[%clk 0:02:58.8]} 9. cxd5 {[%clk 0:03:01.1]} 9... Ng4 {[%clk 0:02:49.8]}
10. Bg5 {[%clk 0:02:51.6]} 10... Qb6 {[%clk 0:02:46.8]} 11. Qd2 {[%clk
0:02:36.5]} 11... h6 {[%clk 0:02:27.3]} 12. Bf4 {[%clk 0:02:27.6]} 12... g5
{[%clk 0:02:24.3]} 13. Bg3 {[%clk 0:02:27]} 13... Nd7 {[%clk 0:01:46.8]} 14. h4
{[%clk 0:02:25.5]} 14... gxh4 {[%clk 0:01:18]} 15. Rxh4 {[%clk 0:02:23.1]} 15...
Nde5 {[%clk 0:01:13.6]} 16. Nxe5 {[%clk 0:02:17.6]} 16... Nxe5 {[%clk
0:01:13.3]} 17. O-O-O {[%clk 0:01:43.9]} 17... Ng6 {[%clk 0:01:05.1]} 18. Rxh6
{[%clk 0:01:43.4]} 18... Bxh6 {[%clk 0:00:31.4]} 19. Qxh6 {[%clk 0:01:42.3]}
19... Qd8 {[%clk 0:00:29.8]} 20. Rh1 {[%clk 0:01:36]} 20... Re8 {[%clk
0:00:29.8]} 21. f4 {[%clk 0:01:06.4]} 21... Qf6 {[%clk 0:00:26.7]} 22. f5 {[%clk
0:01:01.8]} 22... Ne5 {[%clk 0:00:21]} 23. Qxf6 {[%clk 0:01:00.1]} 1-0

[Event "*** Titled Tuesday Blitz"]
[Site "Chess.com"]
[Date "2020.04.21"]
[Round "5"]
[White "Incognito_Knight"]
[Black "RATNAKARAN"]
[Result "1-0"]
[WhiteElo "2731"]
[BlackElo "2578"]
[TimeControl "180+1"]
[EndTime "10:55:23 PDT"]
[Termination "Incognito_Knight won by resignation"]

1. e4 {[%clk 0:03:00.8]} 1... e6 {[%clk 0:02:59.6]} 2. d4 {[%clk 0:03:00.9]}
2... d5 {[%clk 0:02:59.7]} 3. Nd2 {[%clk 0:03:01.3]} 3... Nf6 {[%clk 0:02:59.9]}
4. e5 {[%clk 0:03:01.7]} 4... Nfd7 {[%clk 0:03:00.1]} 5. Bd3 {[%clk 0:03:00.7]}
5... c5 {[%clk 0:03:00.5]} 6. c3 {[%clk 0:03:01.2]} 6... Nc6 {[%clk 0:03:00.7]}
7. Ne2 {[%clk 0:03:01.5]} 7... cxd4 {[%clk 0:03:00.2]} 8. cxd4 {[%clk
0:03:02.4]} 8... f6 {[%clk 0:03:00.7]} 9. exf6 {[%clk 0:03:02.9]} 9... Nxf6
{[%clk 0:03:01.1]} 10. Nf3 {[%clk 0:03:02.2]} 10... Bd6 {[%clk 0:03:02]} 11. O-O
{[%clk 0:03:02.2]} 11... Qc7 {[%clk 0:03:02.6]} 12. Bd2 {[%clk 0:03:00.5]} 12...
O-O {[%clk 0:03:02.5]} 13. Rc1 {[%clk 0:02:57.3]} 13... Bd7 {[%clk 0:03:02.2]}
14. Bc3 {[%clk 0:02:51.2]} 14... Ne4 {[%clk 0:03:00.2]} 15. Ng3 {[%clk 0:02:46]}
15... Bf4 {[%clk 0:02:47]} 16. Rc2 {[%clk 0:02:38.2]} 16... Nxc3 {[%clk
0:02:46.4]} 17. Rxc3 {[%clk 0:02:37.1]} 17... g6 {[%clk 0:02:44.9]} 18. Re1
{[%clk 0:02:34.4]} 18... Qd6 {[%clk 0:02:28.7]} 19. a3 {[%clk 0:02:20.4]} 19...
a6 {[%clk 0:02:27.6]} 20. Qc2 {[%clk 0:02:07.7]} 20... Rf6 {[%clk 0:02:13.5]}
21. Qe2 {[%clk 0:01:58.8]} 21... Raf8 {[%clk 0:02:10.7]} 22. Bb1 {[%clk
0:01:53.4]} 22... R8f7 {[%clk 0:02:05.7]} 23. Qd1 {[%clk 0:01:43.3]} 23... e5
{[%clk 0:02:00.7]} 24. Rxc6 {[%clk 0:01:27]} 24... Qxc6 {[%clk 0:02:00.1]} 25.
dxe5 {[%clk 0:01:27]} 25... Bxg3 {[%clk 0:01:59.7]} 26. exf6 {[%clk 0:01:13.4]}
26... Bb8 {[%clk 0:01:53.4]} 27. Ba2 {[%clk 0:01:12.4]} 27... Be6 {[%clk
0:01:33.7]} 28. Ng5 {[%clk 0:00:55.2]} 28... Qd6 {[%clk 0:01:26.1]} 29. Rxe6
{[%clk 0:00:41]} 29... Qxh2+ {[%clk 0:01:23.9]} 30. Kf1 {[%clk 0:00:41.4]} 30...
Rf8 {[%clk 0:01:13.7]} 31. Qxd5 {[%clk 0:00:36]} 1-0

[Event "*** Titled Tuesday Blitz"]
[Site "Chess.com"]
[Date "2020.04.21"]
[Round "5"]
[White "CzechmVIII"]
[Black "XiaoKangZhong"]
[Result "1-0"]
[WhiteElo "2243"]
[BlackElo "2356"]
[TimeControl "180+1"]
[EndTime "10:55:26 PDT"]
[Termination "CzechmVIII won by checkmate"]

1. e4 {[%clk 0:03:00.9]} 1... c6 {[%clk 0:03:00.3]} 2. d4 {[%clk 0:02:59.6]}
2... d5 {[%clk 0:03:00.5]} 3. e5 {[%clk 0:02:59.6]} 3... c5 {[%clk 0:03:00.4]}
4. c4 {[%clk 0:02:59.1]} 4... Nc6 {[%clk 0:02:38.1]} 5. Nf3 {[%clk 0:02:58.9]}
5... cxd4 {[%clk 0:02:24.9]} 6. Nxd4 {[%clk 0:02:55.8]} 6... Nxe5 {[%clk
0:02:23.3]} 7. cxd5 {[%clk 0:02:34.9]} 7... Qxd5 {[%clk 0:01:59.6]} 8. Nc3
{[%clk 0:02:34.5]} 8... Qd8 {[%clk 0:01:52.6]} 9. Bf4 {[%clk 0:02:30.2]} 9...
Nc6 {[%clk 0:01:51.4]} 10. Bb5 {[%clk 0:02:19.3]} 10... Bd7 {[%clk 0:01:44.6]}
11. O-O {[%clk 0:02:10.2]} 11... Nf6 {[%clk 0:01:43.6]} 12. Re1 {[%clk
0:01:51.6]} 12... a6 {[%clk 0:01:25.7]} 13. Bxc6 {[%clk 0:01:45.8]} 13... Bxc6
{[%clk 0:01:26.6]} 14. Nxc6 {[%clk 0:01:33.6]} 14... bxc6 {[%clk 0:01:27.5]} 15.
Qa4 {[%clk 0:01:29.8]} 15... Qc8 {[%clk 0:00:53.4]} 16. Rac1 {[%clk 0:01:29.4]}
16... Nd7 {[%clk 0:00:42.2]} 17. Ne4 {[%clk 0:01:23.3]} 17... e6 {[%clk
0:00:37.9]} 18. Rxc6 {[%clk 0:01:17.9]} 18... Qb7 {[%clk 0:00:31.2]} 19. Rec1
{[%clk 0:00:51.2]} 19... Qxb2 {[%clk 0:00:19.7]} 20. Rc8+ {[%clk 0:00:46.8]}
20... Rxc8 {[%clk 0:00:19.9]} 21. Rxc8+ {[%clk 0:00:46.6]} 21... Ke7 {[%clk
0:00:20.5]} 22. Bd6# {[%clk 0:00:45.5]} 1-0

[Event "*** Titled Tuesday Blitz"]
[Site "Chess.com"]
[Date "2020.04.21"]
[Round "5"]
[White "DoHoChess"]
[Black "Adham_Fawzy"]
[Result "1-0"]
[WhiteElo "2556"]
[BlackElo "2774"]
[TimeControl "180+1"]
[EndTime "10:55:27 PDT"]
[Termination "DoHoChess won by resignation"]

1. c4 {[%clk 0:03:00.9]} 1... e5 {[%clk 0:02:59.7]} 2. Nc3 {[%clk 0:03:00.4]}
2... Nf6 {[%clk 0:03:00.1]} 3. Nf3 {[%clk 0:03:00.3]} 3... Nc6 {[%clk
0:03:00.4]} 4. e4 {[%clk 0:02:58]} 4... Bb4 {[%clk 0:02:59.4]} 5. d3 {[%clk
0:02:57.8]} 5... d6 {[%clk 0:02:58.7]} 6. a3 {[%clk 0:02:57.9]} 6... Bxc3+
{[%clk 0:02:58.4]} 7. bxc3 {[%clk 0:02:58.1]} 7... O-O {[%clk 0:02:53.8]} 8. g3
{[%clk 0:02:58.4]} 8... Bg4 {[%clk 0:02:50.1]} 9. Bg2 {[%clk 0:02:58.5]} 9...
Nd7 {[%clk 0:02:50.4]} 10. h3 {[%clk 0:02:51.1]} 10... Bh5 {[%clk 0:02:41.2]}
11. O-O {[%clk 0:02:47.1]} 11... Nc5 {[%clk 0:02:40.8]} 12. Qc2 {[%clk
0:02:38.5]} 12... a5 {[%clk 0:02:38.6]} 13. Nh4 {[%clk 0:02:32.8]} 13... a4
{[%clk 0:02:26.9]} 14. Be3 {[%clk 0:02:31.4]} 14... b6 {[%clk 0:02:23.9]} 15.
Rae1 {[%clk 0:02:10.5]} 15... Bg6 {[%clk 0:02:13.7]} 16. f4 {[%clk 0:01:56.5]}
16... exf4 {[%clk 0:02:14.6]} 17. Nxg6 {[%clk 0:01:56.1]} 17... hxg6 {[%clk
0:02:02.8]} 18. gxf4 {[%clk 0:01:56.4]} 18... Qd7 {[%clk 0:01:55.8]} 19. d4
{[%clk 0:01:56.4]} 19... Nb3 {[%clk 0:01:55]} 20. f5 {[%clk 0:01:55.1]} 20...
Rae8 {[%clk 0:01:45.4]} 21. fxg6 {[%clk 0:01:47.8]} 21... fxg6 {[%clk
0:01:46.3]} 22. e5 {[%clk 0:01:38.7]} 22... Kh7 {[%clk 0:01:33.7]} 23. Rxf8
{[%clk 0:01:36.3]} 23... Rxf8 {[%clk 0:01:29.4]} 24. Qe4 {[%clk 0:01:36.1]}
24... Ne7 {[%clk 0:01:06.9]} 25. Qh4+ {[%clk 0:01:35]} 25... Kg8 {[%clk
0:01:06.9]} 26. e6 {[%clk 0:01:06.3]} 26... Qe8 {[%clk 0:00:57.9]} 27. Bg5
{[%clk 0:01:03.4]} 27... Nf5 {[%clk 0:00:52.2]} 28. Qg4 {[%clk 0:01:01.4]} 28...
c6 {[%clk 0:00:46.4]} 29. e7 {[%clk 0:00:59.8]} 29... Rf7 {[%clk 0:00:45.4]} 30.
Bxc6 {[%clk 0:01:00]} 30... Qxc6 {[%clk 0:00:40.7]} 31. e8=Q+ {[%clk 0:00:59.6]}
31... Qxe8 {[%clk 0:00:41.4]} 32. Rxe8+ {[%clk 0:00:59.9]} 32... Rf8 {[%clk
0:00:42.3]} 33. Rxf8+ {[%clk 0:00:58.8]} 33... Kxf8 {[%clk 0:00:43.2]} 1-0